bitfinex-derivatives/quotes_BTCF0:USTF0_20250719
["timestamp","ask_amount","ask_price","bid_price","bid_amount"]
[1752884992289,0.59848235,118110.0,118100.0,0.86188846]
[1752884992491,0.52225664,118110.0,118100.0,0.86188846]
[1752884992690,0.59848114,118110.0,118100.0,0.86188846]
[1752884992993,0.61510311,118110.0,118100.0,0.57138888]
[1752884993187,0.61510311,118110.0,118100.0,0.86188846]
[1752884993393,0.53887861,118110.0,118100.0,0.86188846]
[1752884997193,0.53887861,118110.0,118100.0,0.50108846]
[1752884999098,0.53887861,118110.0,118100.0,0.21058888]
[1752884999298,0.53887861,118110.0,118100.0,0.48181568]
[1752884999501,0.64560024,118110.0,118100.0,0.48181568]
[1752885000089,0.64560024,118110.0,118100.0,0.44350353]
[1752885000293,0.70809301,118110.0,118100.0,0.48181124]
[1752885000492,1.06889301,118110.0,118100.0,0.73212293]
[1752885000693,0.70809301,118110.0,118100.0,0.73212293]
[1752885000893,0.24837903,118110.0,118100.0,0.73212293]
[1752885001093,0.52225664,118110.0,118100.0,0.73212293]
[1752885001292,0.72045396,118110.0,118100.0,0.44162335]
[1752885001789,0.88966836,118110.0,118100.0,0.73212293]
[1752885002594,0.88966836,118110.0,118100.0,1.09292293]
[1752885002899,0.88966836,118110.0,118100.0,0.43868293]
[1752885003099,0.88966836,118110.0,118100.0,0.73208293]
[1752885003797,0.69147104,118110.0,118100.0,0.73208293]
[1752885004299,0.69147104,118110.0,118100.0,0.44158335]
[1752885004798,0.88966836,118110.0,118100.0,0.44158335]
[1752885005499,0.88966846,118110.0,118100.0,0.44158335]
[1752885005798,0.88966846,118110.0,118100.0,1.09288293]
[1752885006000,0.69147114,118110.0,118100.0,1.09288293]
[1752885007399,0.69147114,118110.0,118100.0,1.07361019]
[1752885008102,0.69147114,118110.0,118100.0,1.05971158]
[1752885008292,0.69147114,118110.0,118100.0,1.06882834]
[1752885008900,0.52225664,118110.0,118100.0,1.06882834]
[1752885009100,0.69147114,118110.0,118100.0,1.06882834]
[1752885009503,0.84392747,118110.0,118100.0,1.06882834]
[1752885010104,0.67471297,118110.0,118100.0,0.95446348]
[1752885010604,0.84392747,118110.0,118100.0,0.95446348]
[1752885011803,0.84392747,118110.0,118100.0,0.59366348]
[1752885012001,0.55342789,118110.0,118100.0,0.3031639]
[1752885012301,0.37990587,118110.0,118100.0,0.6639639]
[1752885012502,0.27318339,118110.0,118100.0,0.3031639]
[1752885012705,0.27318339,118110.0,118100.0,1.31526348]
[1752885013010,0.24907437,118110.0,118100.0,1.31526348]
[1752885013311,0.24807437,118110.0,118100.0,1.31526348]
[1752885013509,0.24707437,118110.0,118100.0,1.31726348]
[1752885013908,0.24707437,118110.0,118100.0,1.61246348]
[1752885014210,0.24707437,118110.0,118100.0,1.61346348]
[1752885014601,0.24707437,118110.0,118100.0,1.3229639]
[1752885014804,0.24707437,118110.0,118100.0,1.61346348]
[1752885016511,0.24707437,118110.0,118100.0,1.59419353]
[1752885017111,0.31531627,118110.0,118100.0,1.59419353]
[1752885020714,0.24707437,118110.0,118100.0,1.59419353]
[1752885021912,0.24707437,118110.0,118100.0,0.87259353]
[1752885022212,0.14036706,118110.0,118100.0,1.61821958]
[1752885022516,0.29282339,118110.0,118100.0,1.77355178]
[1752885022818,0.29282339,118110.0,118100.0,1.74602328]
[1752885023317,0.14036706,118110.0,118100.0,1.74602328]
[1752885023714,0.14036706,118110.0,118100.0,2.03652286]
[1752885023915,0.14036706,118110.0,118100.0,1.74602328]
[1752885024218,0.11872706,118110.0,118100.0,1.75016328]
[1752885024713,0.11872706,118110.0,118100.0,1.7308936]
[1752885024917,0.14267706,118110.0,118100.0,1.7308936]
[1752885026112,0.11872706,118110.0,118100.0,1.7308936]
[1752885026311,0.22524523,118110.0,118100.0,1.7308936]
[1752885027320,0.24919523,118110.0,118100.0,1.7308936]
[1752885028719,0.14267706,118110.0,118100.0,1.7308936]
[1752885031124,0.14267706,118110.0,118100.0,1.44039402]
[1752885031424,0.14267706,118110.0,118100.0,1.7308936]
[1752885032017,0.21876082,118110.0,118100.0,1.7308936]
[1752885032624,0.21876082,118110.0,118100.0,1.71162381]
[1752885032824,0.14267706,118110.0,118100.0,1.71162381]
[1752885033322,0.24919433,118110.0,118100.0,1.71162381]
[1752885035925,0.24919433,118110.0,118100.0,1.42112423]
[1752885036124,0.24919433,118110.0,118100.0,1.71162381]
[1752885037325,0.21878777,118110.0,118100.0,1.71162381]
[1752885037622,0.21878777,118110.0,118100.0,1.49438838]
[1752885039426,0.21878777,118110.0,118100.0,1.50100838]
[1752885041027,0.21878777,118110.0,118100.0,1.2105088]
[1752885041325,0.21878777,118110.0,118100.0,1.50100838]
[1752885043117,0.30131777,118110.0,118100.0,1.50100838]
[1752885043324,0.31268777,118110.0,118100.0,1.50100838]
[1752885043523,0.25022777,118110.0,118100.0,1.79620838]
[1752885045130,0.25022777,118110.0,118100.0,1.5057088]
[1752885045324,0.25022777,118110.0,118100.0,1.79620838]
[1752885047926,0.22520706,118110.0,118100.0,1.79620838]
[1752885049732,0.30141663,118110.0,118100.0,1.79620838]
[1752885052633,0.30141663,118110.0,118100.0,1.79408838]
[1752885054032,0.60328621,118110.0,118100.0,1.78974838]
[1752885054234,0.52707664,118110.0,118100.0,1.78974838]
[1752885054535,0.52707664,118110.0,118100.0,1.48414838]
[1752885054833,0.23657706,118110.0,118100.0,1.78958838]
[1752885055033,0.52707664,118110.0,118100.0,1.78958838]
[1752885055233,0.52707664,118110.0,118100.0,1.18894838]
[1752885055435,0.52707664,118110.0,118100.0,1.49434838]
[1752885056033,0.23657706,118110.0,118100.0,1.49434838]
[1752885056232,0.23657706,118110.0,118100.0,1.49793838]
[1752885056533,0.23657706,118110.0,118100.0,1.47866761]
[1752885056733,0.34309433,118110.0,118100.0,1.47866761]
[1752885057333,0.34309433,118110.0,118100.0,1.46477042]
[1752885057937,0.23657706,118110.0,118100.0,1.46477042]
[1752885061638,0.34326921,118110.0,118100.0,1.46477042]
[1752885062137,0.23657706,118110.0,118100.0,1.49693838]
[1752885062729,0.38903339,118110.0,118100.0,1.49693838]
[1752885064342,0.23657706,118110.0,118100.0,1.49693838]
[1752885064537,0.23657706,118110.0,118100.0,1.49031838]
[1752885064740,0.23657706,118110.0,118100.0,1.47766761]
[1752885065442,0.23657706,118110.0,118100.0,1.17327084]
[1752885065638,0.23657706,118110.0,118100.0,1.46377042]
[1752885067343,0.25343661,118110.0,118100.0,1.39515791]
[1752885067538,0.40589294,118110.0,118100.0,1.39515791]
[1752885068044,0.38903339,118110.0,118100.0,1.39515791]
[1752885068444,0.23657706,118110.0,118100.0,1.39515791]
[1752885069343,0.23657706,118110.0,118100.0,1.10465833]
[1752885069545,0.23657706,118110.0,118100.0,1.39515791]
[1752885070248,0.23657706,118110.0,118100.0,1.10465833]
[1752885070438,0.23657706,118110.0,118100.0,1.39515791]
[1752885071144,0.34325285,118110.0,118100.0,1.39515791]
[1752885072247,0.41945054,118110.0,118100.0,1.39515791]
[1752885072445,0.31277475,118110.0,118100.0,1.39515791]
[1752885072946,0.32954952,118110.0,118100.0,1.39515791]
[1752885075545,0.32954952,118110.0,118100.0,1.39339791]
[1752885077852,0.23564952,118110.0,118100.0,1.39339791]
[1752885079151,0.23564952,118110.0,118100.0,1.39303791]
[1752885079351,0.31584952,118110.0,118100.0,1.39303791]
[1752885079651,0.31584952,118110.0,118100.0,1.32442864]
[1752885080451,0.32749952,118110.0,118100.0,1.32442864]
[1752885083259,0.25130183,118110.0,118100.0,1.32442864]
[1752885084759,0.25130183,118110.0,118100.0,1.03392906]
[1752885084959,0.25130183,118110.0,118100.0,1.32442864]
[1752885089464,0.25130183,118110.0,118100.0,1.30515875]
[1752885089664,0.35797762,118110.0,118100.0,1.23654947]
[1752885091862,0.34120285,118110.0,118100.0,1.23654947]
[1752885092368,0.23452706,118110.0,118100.0,1.23654947]
[1752885092567,0.23452706,118110.0,118100.0,1.12739838]
[1752885092869,0.25119155,118110.0,118100.0,1.12739838]
[1752885093364,0.25119155,118110.0,118100.0,0.95457958]
[1752885093564,0.25119155,118110.0,118100.0,0.8333088]
[1752885093764,0.25119155,118110.0,118100.0,1.12380838]
[1752885093968,0.23452706,118110.0,118100.0,1.12380838]
[1752885095965,0.3412273,118110.0,118100.0,1.12380838]
[1752885096768,0.23452706,118110.0,118100.0,1.12380838]
[1752885100473,0.3412273,118110.0,118100.0,1.12380838]
[1752885100974,0.3412273,118110.0,118100.0,1.10453849]
[1752885101679,0.3412273,118110.0,118100.0,0.81403891]
[1752885101878,0.3412273,118110.0,118100.0,1.10453849]
[1752885103577,0.31076131,118110.0,118100.0,1.10453849]
[1752885104578,0.31076131,118110.0,118100.0,0.81403891]
[1752885104780,0.31076131,118110.0,118100.0,1.10453849]
[1752885104981,0.31076131,118110.0,118100.0,0.82052838]
[1752885105168,0.31076131,118110.0,118100.0,1.12196838]
[1752885107681,0.31076131,118110.0,118100.0,0.8314688]
[1752885108178,0.31076131,118110.0,118100.0,1.12196838]
[1752885109878,0.31076131,118110.0,118100.0,0.76116838]
[1752885110079,0.31076131,118110.0,118100.0,1.12196838]
[1752885110580,0.23452706,118110.0,118100.0,1.12196838]
[1752885111878,0.25114551,118110.0,118100.0,1.12196838]
[1752885112077,0.25114551,118110.0,118100.0,1.05335687]
[1752885112980,0.23452706,118110.0,118100.0,1.05335687]
[1752885113381,0.3412273,118110.0,118100.0,1.05335687]
[1752885114575,0.3412273,118110.0,118100.0,0.76285729]
[1752885114777,0.3412273,118110.0,118100.0,1.05335687]
[1752885115082,0.40926484,118110.0,118100.0,1.05335687]
[1752885115275,0.40926484,118110.0,118100.0,0.76285729]
[1752885115581,0.3412273,118110.0,118100.0,1.05335687]
[1752885117484,0.3412273,118110.0,118100.0,1.34385645]
[1752885117680,0.3412273,118110.0,118100.0,0.76285729]
[1752885117880,0.3412273,118110.0,118100.0,1.05335687]
[1752885119079,0.3412273,118110.0,118100.0,0.90584185]
[1752885119284,0.23452706,118110.0,118100.0,1.07507065]
[1752885119783,0.38698339,118110.0,118100.0,1.07507065]
[1752885120485,0.23452706,118110.0,118100.0,1.07507065]
[1752885122089,0.34123322,118110.0,118100.0,1.07507065]
[1752885124189,0.34123322,118110.0,118100.0,0.78457107]
[1752885124390,0.24938322,118110.0,118100.0,1.36557023]
[1752885124591,0.24938322,118110.0,118100.0,1.07507065]
[1752885126288,0.31661614,118110.0,118100.0,1.36557023]
[1752885126493,0.24642614,118110.0,118100.0,1.36557023]
[1752885126887,0.29512614,118110.0,118100.0,1.07507065]
[1752885127791,0.29512614,118110.0,118100.0,1.34630082]
[1752885128585,0.29512614,118110.0,118100.0,1.05580124]
[1752885129394,0.21327998,118110.0,118100.0,1.05580124]
[1752885130594,0.21327998,118110.0,118100.0,1.07466968]
[1752885131792,0.14604706,118110.0,118100.0,1.36516926]
[1752885131992,0.15008853,118120.0,118110.0,0.1780738]
[1752885132197,0.05222973,118120.0,118110.0,1.11987296]
[1752885132392,0.10106814,118130.0,118120.0,0.1691995]
[1752885132593,0.19677814,118130.0,118120.0,1.18123472]
[1752885132799,0.12057,118130.0,118120.0,1.23094472]
[1752885133899,0.19897,118130.0,118120.0,1.23094472]
[1752885134501,0.24767,118130.0,118120.0,1.23094472]
[1752885134800,0.31516798,118130.0,118120.0,1.23094472]
[1752885135500,0.31716798,118130.0,118120.0,1.23094472]
[1752885137596,0.31816798,118130.0,118120.0,1.23094472]
[1752885138003,0.31816798,118130.0,118120.0,0.94044514]
[1752885138203,0.39437612,118130.0,118120.0,1.23094472]
[1752885138702,0.39437612,118130.0,118120.0,1.21167708]
[1752885138902,0.42485938,118130.0,118120.0,1.21167708]
[1752885139202,0.31816798,118130.0,118120.0,1.21167708]
[1752885139702,0.25067,118130.0,118120.0,1.21167708]
[1752885140001,0.25067,118130.0,118120.0,1.06174522]
[1752885140200,0.32677982,118130.0,118120.0,1.23094472]
[1752885140603,0.32677982,118130.0,118120.0,0.94044514]
[1752885140803,0.32677982,118130.0,118120.0,1.23094472]
[1752885141509,0.32677982,118130.0,118120.0,0.94044514]
[1752885141703,0.32677982,118130.0,118120.0,1.23094472]
[1752885142204,0.25067,118130.0,118120.0,1.23094472]
[1752885143505,0.25067,118130.0,118120.0,0.94044514]
[1752885143705,0.25067,118130.0,118120.0,1.23094472]
[1752885145404,0.60775215,118130.0,118120.0,0.92662472]
[1752885145611,0.96855215,118130.0,118120.0,0.86581472]
[1752885145817,0.96855215,118130.0,118120.0,0.56241472]
[1752885146107,0.96855215,118130.0,118120.0,0.86569472]
[1752885146505,1.0751059,118130.0,118120.0,0.86569472]
[1752885146706,0.78460632,118130.0,118120.0,0.86569472]
[1752885147107,1.0751059,118130.0,118120.0,0.86569472]
[1752885147810,0.96855215,118130.0,118120.0,0.86569472]
[1752885151314,0.67805257,118130.0,118120.0,0.86569472]
[1752885151715,0.96855215,118130.0,118120.0,0.86569472]
[1752885152215,0.96855215,118130.0,118120.0,0.75451258]
[1752885152216,0.67805257,118130.0,118120.0,0.75451258]
[1752885152406,0.96855215,118130.0,118120.0,0.75451258]
[1752885152611,0.96855215,118130.0,118120.0,0.77356566]
[1752885152807,0.96855215,118130.0,118120.0,0.47028566]
[1752885153114,0.96855215,118130.0,118120.0,0.77344566]
[1752885153914,0.60775215,118130.0,118120.0,0.77344566]
[1752885154120,0.60775215,118130.0,118120.0,0.74028175]
[1752885154917,0.75997325,118130.0,118120.0,0.74028175]
[1752885155124,0.75997325,118130.0,118120.0,0.58020772]
[1752885155325,0.75997325,118130.0,118120.0,0.74940722]
[1752885155926,0.75997325,118130.0,118120.0,0.49141258]
[1752885156127,0.75997325,118130.0,118120.0,0.85221258]
[1752885156425,0.75997325,118130.0,118120.0,1.14271216]
[1752885156626,0.46947367,118130.0,118120.0,1.14271216]
[1752885156826,0.4028911,118130.0,118120.0,1.14271216]
[1752885157927,0.4028911,118130.0,118120.0,0.78191216]
[1752885158324,0.4028911,118130.0,118120.0,1.14271216]
[1752885158924,0.4028911,118130.0,118120.0,0.78191216]
[1752885159725,0.25067,118130.0,118120.0,0.78191216]
[1752885160127,0.25067,118130.0,118120.0,0.49141258]
[1752885160323,0.40301375,118130.0,118120.0,0.7543872]
[1752885160730,0.40301375,118130.0,118120.0,0.77325602]
[1752885161332,0.40301375,118130.0,118120.0,1.13405602]
[1752885162132,0.50967458,118130.0,118120.0,1.10089371]
[1752885162732,0.35733083,118130.0,118120.0,1.10089371]
[1752885162935,0.23676083,118130.0,118120.0,1.10089371]
[1752885163335,0.1301,118130.0,118120.0,1.10089371]
[1752885164431,0.15412,118130.0,118120.0,1.10089371]
[1752885166036,0.26078083,118130.0,118120.0,1.10089371]
[1752885166429,0.15412,118130.0,118120.0,1.10089371]
[1752885167235,0.15412,118130.0,118120.0,0.81039413]
[1752885167435,0.15412,118130.0,118120.0,1.10089371]
[1752885168437,0.12784462,118130.0,118120.0,1.13100371]
[1752885168833,0.13068083,118150.0,118140.0,0.2435708]
[1752885169036,0.02402,118150.0,118140.0,1.55297895]
[1752885170334,0.02402,118150.0,118140.0,1.53371426]
[1752885170636,0.10841,118150.0,118140.0,1.53371426]
[1752885170837,0.15834,118150.0,118140.0,1.53371426]
[1752885171036,0.26500083,118150.0,118140.0,1.53371426]
[1752885171436,0.24044603,118150.0,118140.0,1.55166426]
[1752885171637,0.24444603,118150.0,118140.0,1.55166426]
[1752885173232,0.24244603,118150.0,118140.0,1.55166426]
[1752885173538,0.26646603,118150.0,118140.0,1.55166426]
[1752885175131,0.26346603,118150.0,118140.0,1.55166426]
[1752885175842,0.36361603,118150.0,118140.0,0.69450157]
[1752885176142,0.36361603,118150.0,118140.0,1.57662073]
[1752885178445,0.36361603,118150.0,118140.0,1.55735639]
[1752885181848,0.2569552,118150.0,118140.0,1.55735639]
[1752885182148,0.33296126,118150.0,118140.0,1.55735639]
[1752885182952,0.40183067,118150.0,118140.0,1.55735639]
[1752885184250,0.33296126,118150.0,118140.0,1.19655639]
[1752885184449,0.33296126,118150.0,118140.0,1.55735639]
[1752885184647,0.33296126,118150.0,118140.0,1.19655639]
[1752885184848,0.33296126,118150.0,118140.0,0.97635723]
[1752885185148,0.33296126,118150.0,118140.0,1.55735639]
[1752885185448,0.62346084,118150.0,118140.0,0.96573681]
[1752885185648,0.62346084,118150.0,118140.0,1.26605681]
[1752885185849,0.2569552,118150.0,118140.0,1.49199639]
[1752885186048,0.2569552,118150.0,118140.0,0.84069681]
[1752885186251,0.2569552,118150.0,118140.0,0.91564681]
[1752885186749,0.2569552,118150.0,118140.0,1.27644681]
[1752885187051,0.2569552,118150.0,118140.0,0.91564681]
[1752885187243,0.2569552,118150.0,118140.0,1.27644681]
[1752885188350,0.31776891,118150.0,118140.0,1.27644681]
[1752885188850,0.38391362,118150.0,118140.0,1.27644681]
[1752885189149,0.38391362,118150.0,118140.0,0.97612681]
[1752885189350,0.38391362,118150.0,118140.0,1.27628681]
[1752885190446,0.6744132,118150.0,118140.0,0.97612681]
[1752885190748,0.6744132,118150.0,118140.0,1.27612681]
[1752885192054,0.6744132,118150.0,118140.0,1.24296985]
[1752885192055,0.61359949,118150.0,118140.0,1.24296985]
[1752885192553,0.72026032,118150.0,118140.0,1.24296985]
[1752885192854,0.42976074,118150.0,118140.0,1.24296985]
[1752885194154,0.42976074,118150.0,118140.0,0.95247027]
[1752885194353,0.42976074,118150.0,118140.0,1.24296985]
[1752885194556,0.72026032,118150.0,118140.0,1.12865388]
[1752885194756,0.42976074,118150.0,118140.0,1.29782468]
[1752885194956,0.32309991,118150.0,118140.0,1.29782468]
[1752885196458,0.42968981,118150.0,118140.0,1.29782468]
[1752885199861,0.42968981,118150.0,118140.0,0.93702468]
[1752885200159,0.42968981,118150.0,118140.0,1.2785603]
[1752885201761,0.42968981,118150.0,118140.0,1.56905988]
[1752885202261,0.32309991,118150.0,118140.0,1.56905988]
[1752885202462,0.47544366,118150.0,118140.0,1.56905988]
[1752885203054,0.23847086,118150.0,118140.0,1.56905988]
[1752885203259,0.15719471,118150.0,118140.0,1.56905988]
[1752885203757,0.15619471,118150.0,118140.0,1.56905988]
[1752885204563,0.15619471,118150.0,118140.0,1.45474656]
[1752885204861,0.17898471,118150.0,118140.0,1.45474656]
[1752885205061,0.17898471,118150.0,118140.0,1.47370271]
[1752885205262,0.22501471,118150.0,118140.0,1.47370271]
[1752885206564,0.22501471,118150.0,118140.0,1.48758986]
[1752885208867,0.11988681,118150.0,118140.0,1.48758986]
[1752885209068,0.19063719,118150.0,118140.0,1.48758986]
[1752885209368,0.25945719,118150.0,118140.0,0.9397207]
[1752885209667,0.25945719,118150.0,118140.0,1.52071986]
[1752885210467,0.19665019,118150.0,118140.0,1.88151986]
[1752885210671,0.16609309,118150.0,118140.0,1.88151986]
[1752885210871,0.12157619,118150.0,118140.0,1.88151986]
[1752885211169,0.06959249,118150.0,118140.0,1.88151986]
[1752885211378,0.04700279,118150.0,118140.0,1.88151986]
[1752885211570,0.38871958,118170.0,118160.0,0.2704419]
[1752885211868,0.38871958,118170.0,118160.0,1.23966576]
[1752885212669,0.39071958,118170.0,118160.0,1.23966576]
[1752885212968,0.47762958,118170.0,118160.0,1.23966576]
[1752885213470,0.52365958,118170.0,118160.0,1.23966576]
[1752885213669,0.54644958,118170.0,118160.0,0.94916618]
[1752885213863,0.25595,118170.0,118160.0,1.23966576]
[1752885214069,0.54644958,118170.0,118160.0,1.23966576]
[1752885214267,0.54644958,118170.0,118160.0,0.94916618]
[1752885214570,0.54644958,118170.0,118160.0,1.23966576]
[1752885214765,0.54644958,118170.0,118160.0,1.23955406]
[1752885215164,0.25595,118170.0,118160.0,1.23955406]
[1752885215371,0.54644958,118170.0,118160.0,1.23955406]
[1752885215770,0.54644958,118170.0,118160.0,1.22029238]
[1752885216973,0.54644958,118170.0,118160.0,1.26316238]
[1752885217980,0.25595,118170.0,118160.0,1.26316238]
[1752885218170,0.33205077,118170.0,118160.0,1.33308238]
[1752885218370,0.62255035,118170.0,118160.0,1.33308238]
[1752885219177,0.62255035,118170.0,118160.0,1.26316238]
[1752885222870,0.54644958,118170.0,118160.0,1.26316238]
[1752885223570,0.54644958,118170.0,118160.0,0.90236238]
[1752885224678,0.6529735,118170.0,118160.0,0.88310034]
[1752885226388,0.6529735,118170.0,118160.0,0.59260076]
[1752885226580,0.6529735,118170.0,118160.0,0.88310034]
[1752885227179,0.71921714,118170.0,118160.0,0.88310034]
[1752885227383,0.42871756,118170.0,118160.0,0.88310034]
[1752885227585,0.42871756,118170.0,118160.0,0.95302034]
[1752885227786,0.71921714,118170.0,118160.0,0.95302034]
[1752885230880,0.71921714,118170.0,118160.0,0.82251386]
[1752885231086,0.61269322,118170.0,118160.0,0.99165576]
[1752885231287,0.61269322,118170.0,118160.0,1.35245576]
[1752885232586,0.61269322,118170.0,118160.0,1.3331941]
[1752885233187,0.32219364,118170.0,118160.0,1.24938348]
[1752885233490,0.61269322,118170.0,118160.0,1.24938348]
[1752885234489,0.26675364,118170.0,118160.0,1.24938348]
[1752885234794,0.26675364,118170.0,118160.0,1.30433348]
[1752885234795,0.30773448,118170.0,118160.0,1.30433348]
[1752885234996,0.26531084,118170.0,118160.0,1.30433348]
[1752885235494,0.35745084,118170.0,118160.0,1.30433348]
[1752885235693,0.36971084,118170.0,118160.0,1.30433348]
[1752885237095,0.26316,118170.0,118160.0,1.27681712]
[1752885239690,0.26316,118170.0,118160.0,1.01981754]
[1752885239893,0.26316,118170.0,118160.0,1.31031712]
[1752885240693,0.26316,118170.0,118160.0,1.29105567]
[1752885240894,0.26316,118170.0,118160.0,1.17675714]
[1752885241086,0.32991836,118170.0,118160.0,1.18141749]
[1752885241798,0.32991836,118170.0,118160.0,1.19700749]
[1752885242697,0.32991836,118170.0,118160.0,0.90650791]
[1752885242897,0.32991836,118170.0,118160.0,1.19700749]
[1752885243097,0.32991836,118170.0,118160.0,1.16949165]
[1752885244098,0.43654729,118170.0,118160.0,0.86808207]
[1752885244301,0.43654729,118170.0,118160.0,0.79778165]
[1752885244600,0.32991836,118170.0,118160.0,0.79778165]
[1752885245399,0.7270494,118170.0,118160.0,0.79778165]
[1752885245693,1.0878494,118170.0,118160.0,0.5272823]
[1752885245896,0.98121794,118170.0,118160.0,0.23678272]
[1752885246096,0.98121794,118170.0,118160.0,0.8250023]
[1752885246801,0.79735303,118170.0,118160.0,0.5272823]
[1752885247099,1.08785261,118170.0,118160.0,0.8250023]
[1752885247299,1.08785261,118170.0,118160.0,0.53450272]
[1752885247599,1.05738549,118170.0,118160.0,0.8250023]
[1752885250203,1.05738549,118170.0,118160.0,0.5272823]
[1752885250503,1.05738549,118170.0,118160.0,0.8250023]
[1752885251005,0.76688591,118170.0,118160.0,0.8250023]
[1752885251303,1.05738549,118170.0,118160.0,0.8250023]
[1752885252306,0.98121794,118170.0,118160.0,0.8250023]
[1752885253702,0.98121794,118170.0,118160.0,0.80573994]
[1752885253902,1.13356169,118170.0,118160.0,0.80573994]
[1752885254101,1.30269119,118170.0,118160.0,0.20328272]
[1752885254305,1.42406127,118170.0,118160.0,0.4751319]
[1752885254506,1.13356169,118170.0,118160.0,0.4907219]
[1752885255409,1.13356169,118170.0,118160.0,0.32158]
[1752885255604,1.13356169,118170.0,118160.0,0.4907219]
[1752885256609,1.13356169,118170.0,118160.0,0.78122148]
[1752885257309,0.84306211,118170.0,118160.0,0.78122148]
[1752885257510,1.13356169,118170.0,118160.0,0.78122148]
[1752885257710,0.84306211,118170.0,118160.0,0.78122148]
[1752885257912,1.13356169,118170.0,118160.0,0.78122148]
[1752885259513,0.98121794,118170.0,118160.0,0.76732985]
[1752885259811,1.17941526,118170.0,118160.0,0.76732985]
[1752885260015,1.28603465,118170.0,118160.0,0.76732985]
[1752885260814,1.08783733,118170.0,118160.0,0.76732985]
[1752885261013,1.08683733,118170.0,118160.0,0.76732985]
[1752885261213,0.72603733,118170.0,118160.0,0.47683027]
[1752885261511,0.72403733,118170.0,118160.0,0.76732985]
[1752885262114,0.80018716,118170.0,118160.0,0.76732985]
[1752885262613,0.69356777,118170.0,118160.0,0.76732985]
[1752885263313,0.69356777,118170.0,118160.0,0.47683027]
[1752885263514,1.05436777,118170.0,118160.0,0.76732985]
[1752885264015,0.69356777,118170.0,118160.0,0.76732985]
[1752885264211,1.05436777,118170.0,118160.0,0.76732985]
[1752885264511,1.05436777,118170.0,118160.0,0.47683027]
[1752885264815,0.97821794,118170.0,118160.0,0.76732985]
[1752885268516,0.61741794,118170.0,118160.0,1.12812985]
[1752885270416,0.32691836,118170.0,118160.0,1.14735806]
[1752885270615,0.61741794,118170.0,118160.0,1.14735806]
[1752885270811,0.72403733,118170.0,118160.0,1.14735806]
[1752885271208,0.79433775,118170.0,118160.0,0.4911619]
[1752885271408,1.08483733,118170.0,118160.0,0.47189897]
[1752885271712,0.97821794,118170.0,118160.0,0.58865958]
[1752885272015,0.61741794,118170.0,118160.0,0.75780148]
[1752885272216,0.61741794,118170.0,118160.0,0.7764049]
[1752885272816,0.61741794,118170.0,118160.0,0.48590532]
[1752885272817,0.32691836,118170.0,118160.0,0.48590532]
[1752885273018,0.61741794,118170.0,118160.0,0.7764049]
[1752885273218,0.72404883,118170.0,118160.0,0.7764049]
[1752885273615,0.61741794,118170.0,118160.0,0.48590532]
[1752885273819,0.72404933,118170.0,118160.0,0.48590532]
[1752885274021,0.72404933,118170.0,118160.0,0.7764049]
[1752885274219,0.72404933,118170.0,118160.0,0.48590532]
[1752885274414,0.72404933,118170.0,118160.0,0.7764049]
[1752885278323,0.72404933,118170.0,118160.0,0.48590532]
[1752885278624,0.72404933,118170.0,118160.0,0.7764049]
[1752885279024,1.08484933,118170.0,118160.0,0.7764049]
[1752885279723,1.08484933,118170.0,118160.0,0.48590532]
[1752885281524,0.97821794,118170.0,118160.0,0.48590532]
[1752885282218,1.08486476,118170.0,118160.0,0.48590532]
[1752885282925,1.08486476,118170.0,118160.0,0.37159891]
[1752885283121,0.4319938,118160.0,118150.0,0.5547609]
[1752885283327,1.08329338,118160.0,118150.0,0.5547609]
[1752885283526,1.08329338,118160.0,118150.0,0.5548809]
[1752885283722,0.4320081,118150.0,118140.0,0.27270105]
[1752885284025,1.37380726,118150.0,118140.0,0.27270105]
[1752885284225,1.08330768,118150.0,118140.0,0.27270105]
[1752885284428,1.37380726,118150.0,118140.0,0.27270105]
[1752885285121,1.37380726,118150.0,118140.0,0.25343472]
[1752885285321,1.37380726,118150.0,118140.0,0.25643472]
[1752885285523,1.37380726,118150.0,118140.0,0.003]
[1752885285826,0.4320367,118130.0,118120.0,0.5969272]
[1752885286021,1.18987751,118130.0,118120.0,0.2960872]
[1752885286221,1.18987751,118130.0,118120.0,0.5969672]
[1752885286528,1.18987751,118130.0,118120.0,0.2960872]
[1752885286822,1.18987751,118130.0,118120.0,0.253787]
[1752885287126,1.18987751,118130.0,118120.0,0.2398913]
[1752885287524,1.19087751,118130.0,118120.0,0.2398913]
[1752885287724,1.08433628,118130.0,118120.0,0.253787]
[1752885288128,1.19071474,118130.0,118120.0,0.253787]
[1752885289926,1.19271474,118130.0,118120.0,0.253787]
[1752885291329,0.90221516,118130.0,118120.0,0.253787]
[1752885291630,1.25343593,118130.0,118120.0,0.54428658]
[1752885291828,1.14705747,118130.0,118120.0,0.54428658]
[1752885292130,1.08633628,118130.0,118120.0,0.54428658]
[1752885298634,0.72553628,118130.0,118120.0,0.54428658]
[1752885302128,0.80137621,118130.0,118120.0,0.54428658]
[1752885305145,0.72553628,118130.0,118120.0,0.54428658]
[1752885305438,0.72553628,118130.0,118120.0,0.253787]
[1752885305638,0.72553628,118130.0,118120.0,0.54428658]
[1752885305837,0.72553628,118130.0,118120.0,0.253787]
[1752885308638,0.4350367,118130.0,118120.0,0.253787]
[1752885308844,0.72553628,118130.0,118120.0,0.54428658]
[1752885310439,0.80140899,118130.0,118120.0,0.54428658]
[1752885312947,0.80140899,118130.0,118120.0,0.253787]
[1752885313141,0.80140899,118130.0,118120.0,0.45297596]
[1752885313346,0.72553628,118130.0,118120.0,0.45297596]
[1752885313846,0.72553628,118130.0,118120.0,0.16247638]
[1752885314248,0.72553628,118130.0,118120.0,0.2537912]
[1752885316146,0.87790079,118130.0,118120.0,0.2537912]
[1752885316346,0.87790079,118130.0,118120.0,0.54429078]
[1752885316547,0.58740121,118130.0,118120.0,0.54429078]
[1752885316847,0.87790079,118130.0,118120.0,0.54429078]
[1752885317750,0.83223353,118130.0,118120.0,0.54429078]
[1752885318548,0.72553628,118130.0,118120.0,0.54429078]
[1752885318949,0.83223353,118130.0,118120.0,0.54429078]
[1752885319250,0.83223353,118130.0,118120.0,0.2537912]
[1752885319851,0.72553628,118130.0,118120.0,0.2537912]
[1752885322853,0.72553628,118130.0,118120.0,0.23452235]
[1752885323251,0.72553628,118130.0,118120.0,0.13944852]
[1752885323452,0.72553628,118130.0,118120.0,0.18174872]
[1752885324454,0.4350367,118130.0,118120.0,0.18174872]
[1752885324654,0.72553628,118130.0,118120.0,0.18174872]
[1752885326655,0.4350367,118130.0,118120.0,0.18174872]
[1752885326854,0.72553628,118130.0,118120.0,0.18174872]
[1752885330860,0.72553628,118130.0,118120.0,0.16247987]
[1752885331165,0.72553628,118130.0,118120.0,0.0846004]
[1752885331366,0.72553628,118130.0,118120.0,0.2537912]
[1752885333362,0.72553628,118130.0,118120.0,0.18174873]
[1752885333567,0.72553628,118130.0,118120.0,0.22404893]
[1752885338068,0.87790079,118130.0,118120.0,0.22404893]
[1752885338869,0.87790079,118130.0,118120.0,0.20478008]
[1752885339869,1.23870079,118130.0,118120.0,0.20478008]
[1752885341771,1.23870079,118130.0,118120.0,0.19088384]
[1752885342169,1.23870079,118130.0,118120.0,0.07309922]